[Event "Late-Titled-Tuesday-Blitz-March-12-2024"]
[Site "Chess.com"]
[Date "2024.03.12"]
[Round "4"]
[White "Redzishchess"]
[Black "Kostukov_Alex"]
[Result "1-0"]
[WhiteElo "2529"]
[BlackElo "2308"]
[TimeControl "180+1"]
[EndTime "14:38:14 PDT"]
[Termination "Redzishchess won on time"]

1. d4 {[%clk 0:03:00.9]} 1... g6 {[%clk 0:02:54.2]} 2. h4 {[%clk 0:03:00.1]}
2... h5 {[%clk 0:02:53.9]} 3. Nf3 {[%clk 0:02:56.6]} 3... Bg7 {[%clk 0:02:53.1]}
4. c4 {[%clk 0:02:51.8]} 4... d6 {[%clk 0:02:53]} 5. Nc3 {[%clk 0:02:51.3]} 5...
Nf6 {[%clk 0:02:44]} 6. Bg5 {[%clk 0:02:49.6]} 6... O-O {[%clk 0:02:43.8]} 7. e4
{[%clk 0:02:37]} 7... Bg4 {[%clk 0:02:41.1]} 8. Be2 {[%clk 0:02:34.1]} 8... Nh7
{[%clk 0:02:40.9]} 9. Be3 {[%clk 0:02:32.1]} 9... Nd7 {[%clk 0:02:40.8]} 10. Qd2
{[%clk 0:02:30.6]} 10... e5 {[%clk 0:02:38.1]} 11. O-O-O {[%clk 0:02:17.7]}
11... exd4 {[%clk 0:02:35.6]} 12. Bxd4 {[%clk 0:02:06.6]} 12... Nhf6 {[%clk
0:02:09.4]} 13. Ng5 {[%clk 0:02:04]} 13... Bxe2 {[%clk 0:02:07.8]} 14. Qxe2
{[%clk 0:02:00.6]} 14... Ng4 {[%clk 0:01:25.5]} 15. Bxg7 {[%clk 0:01:57.4]}
15... Kxg7 {[%clk 0:01:26.4]} 16. f3 {[%clk 0:01:51.1]} 16... Nge5 {[%clk
0:01:18]} 17. g4 {[%clk 0:01:50.5]} 17... hxg4 {[%clk 0:00:45.4]} 18. f4 {[%clk
0:01:49.7]} 18... Nf3 {[%clk 0:00:25.6]} 19. Nxf3 {[%clk 0:01:49.3]} 19... gxf3
{[%clk 0:00:26.5]} 20. Qxf3 {[%clk 0:01:50.2]} 20... Rh8 {[%clk 0:00:21.6]} 21.
h5 {[%clk 0:01:47.7]} 21... Nf6 {[%clk 0:00:13.8]} 22. hxg6 {[%clk 0:01:39.6]}
22... fxg6 {[%clk 0:00:14.7]} 23. e5 {[%clk 0:01:35.7]} 23... Nh5 {[%clk
0:00:12.6]} 24. exd6 {[%clk 0:01:24.6]} 24... cxd6 {[%clk 0:00:13.5]} 25. Qxb7+
{[%clk 0:01:24.3]} 25... Kh6 {[%clk 0:00:12.1]} 26. Ne4 {[%clk 0:00:42.1]} 26...
Rb8 {[%clk 0:00:09.6]} 27. Qd5 {[%clk 0:00:27.5]} 27... Qb6 {[%clk 0:00:10]} 28.
Rxh5+ {[%clk 0:00:22.2]} 28... Kg7 {[%clk 0:00:07.1]} 29. Qd2 {[%clk 0:00:12.5]}
29... Rxh5 {[%clk 0:00:06.4]} 30. Qc3+ {[%clk 0:00:13]} 30... Kh6 {[%clk
0:00:05.9]} 31. b3 {[%clk 0:00:10.4]} 31... Qc6 {[%clk 0:00:02.8]} 32. Nxd6
{[%clk 0:00:09.9]} 32... Qg2 {[%clk 0:00:02.5]} 33. Nf7+ {[%clk 0:00:09.7]}
33... Kh7 {[%clk 0:00:02.3]} 34. Ng5+ {[%clk 0:00:09.3]} 34... Rxg5 {[%clk
0:00:02.7]} 35. Rd7+ {[%clk 0:00:09.2]} 35... Kh6 {[%clk 0:00:02.7]} 36. fxg5+
{[%clk 0:00:06.7]} 36... Qxg5+ {[%clk 0:00:03.6]} 37. Kb2 {[%clk 0:00:07.2]}
37... Qg2+ {[%clk 0:00:03.6]} 38. Ka3 {[%clk 0:00:07]} 38... Rb7 {[%clk
0:00:02.9]} 39. Qe3+ {[%clk 0:00:06.7]} 39... Kh5 {[%clk 0:00:02.7]} 40. Qc5+
{[%clk 0:00:06.2]} 40... g5 {[%clk 0:00:02.8]} 41. Rd5 {[%clk 0:00:04.3]} 41...
Kh4 {[%clk 0:00:02.7]} 42. Qd6 {[%clk 0:00:04]} 42... g4 {[%clk 0:00:02.9]} 43.
Qh6+ {[%clk 0:00:04]} 43... Kg3 {[%clk 0:00:03.8]} 44. Rd3+ {[%clk 0:00:04.2]}
44... Kf2 {[%clk 0:00:04.1]} 45. Rd2+ {[%clk 0:00:04.7]} 45... Ke1 {[%clk
0:00:04.3]} 46. Rxg2 {[%clk 0:00:05.6]} 1-0

[Event "Late-Titled-Tuesday-Blitz-March-12-2024"]
[Site "Chess.com"]
[Date "2024.03.12"]
[Round "4"]
[White "shirovin"]
[Black "Veleamater"]
[Result "0-1"]
[WhiteElo "2050"]
[BlackElo "2318"]
[TimeControl "180+1"]
[EndTime "14:38:14 PDT"]
[Termination "Veleamater won on time"]

1. e4 {[%clk 0:03:00.9]} 1... e5 {[%clk 0:02:37.5]} 2. Nf3 {[%clk 0:02:59.9]}
2... Nc6 {[%clk 0:02:37.5]} 3. Bc4 {[%clk 0:02:59.3]} 3... Nf6 {[%clk
0:02:37.4]} 4. d3 {[%clk 0:02:58.2]} 4... Be7 {[%clk 0:02:37.8]} 5. O-O {[%clk
0:02:55.1]} 5... O-O {[%clk 0:02:38.3]} 6. Re1 {[%clk 0:02:52.2]} 6... d6 {[%clk
0:02:37.8]} 7. Nbd2 {[%clk 0:02:47.6]} 7... Be6 {[%clk 0:02:38.1]} 8. Bxe6
{[%clk 0:02:42.2]} 8... fxe6 {[%clk 0:02:37.9]} 9. c3 {[%clk 0:02:42]} 9... d5
{[%clk 0:02:29.9]} 10. Qb3 {[%clk 0:02:15.9]} 10... Qd6 {[%clk 0:02:23.1]} 11.
Nf1 {[%clk 0:02:03.7]} 11... Rab8 {[%clk 0:02:18.4]} 12. Ng3 {[%clk 0:01:52.8]}
12... Nd7 {[%clk 0:02:18.2]} 13. Bg5 {[%clk 0:01:40.3]} 13... Bxg5 {[%clk
0:01:52.5]} 14. Nxg5 {[%clk 0:01:38.8]} 14... h6 {[%clk 0:01:52.6]} 15. Nf3
{[%clk 0:01:38]} 15... a5 {[%clk 0:01:49.5]} 16. a4 {[%clk 0:01:36.2]} 16... Nc5
{[%clk 0:01:46.3]} 17. Qc2 {[%clk 0:01:32.1]} 17... Rbd8 {[%clk 0:01:43.2]} 18.
Rad1 {[%clk 0:01:30.1]} 18... Rfe8 {[%clk 0:01:39.9]} 19. Rd2 {[%clk 0:01:10.7]}
19... d4 {[%clk 0:01:27.1]} 20. Red1 {[%clk 0:01:01.2]} 20... Qf8 {[%clk
0:01:19.3]} 21. Rc1 {[%clk 0:00:58.1]} 21... b6 {[%clk 0:01:18.1]} 22. c4 {[%clk
0:00:51.2]} 22... Nb4 {[%clk 0:01:16.2]} 23. Qd1 {[%clk 0:00:44.9]} 23... Qf4
{[%clk 0:01:08.3]} 24. b3 {[%clk 0:00:41.4]} 24... Ncxd3 {[%clk 0:00:58.1]} 25.
Ne2 {[%clk 0:00:28.7]} 25... Qxe4 {[%clk 0:00:56.3]} 26. Ng3 {[%clk 0:00:21.9]}
26... Qh7 {[%clk 0:00:50.1]} 27. Rb1 {[%clk 0:00:19.4]} 27... e4 {[%clk
0:00:42.8]} 28. Ne1 {[%clk 0:00:17.8]} 28... Nxe1 {[%clk 0:00:40.7]} 29. Qxe1
{[%clk 0:00:17]} 29... e3 {[%clk 0:00:38.2]} 30. fxe3 {[%clk 0:00:16.2]} 30...
dxe3 {[%clk 0:00:38.3]} 31. Rxd8 {[%clk 0:00:15.2]} 31... Rxd8 {[%clk
0:00:38.4]} 32. Rb2 {[%clk 0:00:14.5]} 32... Nd3 {[%clk 0:00:35.6]} 33. Qd1
{[%clk 0:00:12.7]} 33... Rd6 {[%clk 0:00:29.8]} 34. Re2 {[%clk 0:00:10.2]} 34...
Nf4 {[%clk 0:00:23.7]} 35. Qe1 {[%clk 0:00:07.3]} 35... Nxe2+ {[%clk 0:00:23.3]}
36. Qxe2 {[%clk 0:00:07.8]} 36... Qd3 {[%clk 0:00:23.6]} 37. h3 {[%clk
0:00:04.6]} 37... Qxe2 {[%clk 0:00:23.2]} 38. Nxe2 {[%clk 0:00:05.5]} 38... Rd3
{[%clk 0:00:23.5]} 39. Kf1 {[%clk 0:00:05.2]} 39... Rxb3 {[%clk 0:00:23.5]} 40.
Nf4 {[%clk 0:00:05.2]} 40... Kf7 {[%clk 0:00:22.6]} 41. Ke2 {[%clk 0:00:04.7]}
41... Rb4 {[%clk 0:00:22.9]} 42. Kxe3 {[%clk 0:00:04.4]} 42... Rxc4 {[%clk
0:00:23.5]} 43. Nd3 {[%clk 0:00:04]} 43... Rc3 {[%clk 0:00:22.9]} 44. Ke4 {[%clk
0:00:03.2]} 44... Rxd3 {[%clk 0:00:23.1]} 45. Kxd3 {[%clk 0:00:03.1]} 45... c5
{[%clk 0:00:23.8]} 46. Kc4 {[%clk 0:00:02.7]} 46... e5 {[%clk 0:00:24.5]} 47.
Kb5 {[%clk 0:00:02.8]} 47... e4 {[%clk 0:00:25.2]} 48. Kc4 {[%clk 0:00:02.5]}
48... e3 {[%clk 0:00:25.3]} 49. Kc3 {[%clk 0:00:01.9]} 49... Ke6 {[%clk
0:00:25.4]} 50. Kd3 {[%clk 0:00:02]} 50... Kd5 {[%clk 0:00:26.1]} 51. Kxe3
{[%clk 0:00:02.5]} 51... c4 {[%clk 0:00:26.7]} 52. Kd2 {[%clk 0:00:02.7]} 52...
Kd4 {[%clk 0:00:26.7]} 53. Kc2 {[%clk 0:00:02.9]} 53... c3 {[%clk 0:00:27.1]}
54. g4 {[%clk 0:00:02.1]} 54... Kc4 {[%clk 0:00:27.4]} 55. h4 {[%clk 0:00:02.4]}
55... g5 {[%clk 0:00:27.9]} 56. h5 {[%clk 0:00:02.1]} 56... Kb4 {[%clk
0:00:27.5]} 0-1

[Event "Late-Titled-Tuesday-Blitz-March-12-2024"]
[Site "Chess.com"]
[Date "2024.03.12"]
[Round "4"]
[White "Sina_Movahed"]
[Black "Zohid6"]
[Result "0-1"]
[WhiteElo "3038"]
[BlackElo "2897"]
[TimeControl "180+1"]
[EndTime "14:38:16 PDT"]
[Termination "Zohid6 won by resignation"]

1. Nf3 {[%clk 0:03:00.9]} 1... Nf6 {[%clk 0:02:58.9]} 2. c4 {[%clk 0:03:01]}
2... e6 {[%clk 0:02:58.7]} 3. g3 {[%clk 0:03:00.9]} 3... d5 {[%clk 0:02:58.1]}
4. Bg2 {[%clk 0:03:01.2]} 4... Be7 {[%clk 0:02:57.4]} 5. O-O {[%clk 0:03:01.7]}
5... O-O {[%clk 0:02:57.4]} 6. d4 {[%clk 0:03:00.4]} 6... dxc4 {[%clk
0:02:57.5]} 7. Qc2 {[%clk 0:03:00.5]} 7... a6 {[%clk 0:02:57.4]} 8. a4 {[%clk
0:03:01.2]} 8... Bd7 {[%clk 0:02:57.2]} 9. Qxc4 {[%clk 0:03:01.8]} 9... Bc6
{[%clk 0:02:57.6]} 10. Bg5 {[%clk 0:03:02.4]} 10... Nbd7 {[%clk 0:02:57.7]} 11.
Nc3 {[%clk 0:03:01.9]} 11... h6 {[%clk 0:02:57.7]} 12. Bf4 {[%clk 0:03:01.5]}
12... Nb6 {[%clk 0:02:56.1]} 13. Qd3 {[%clk 0:03:00.4]} 13... Nbd5 {[%clk
0:02:55.8]} 14. Rfd1 {[%clk 0:02:49.3]} 14... Nb4 {[%clk 0:02:47.9]} 15. Qb1
{[%clk 0:02:39.5]} 15... Bd6 {[%clk 0:02:36.7]} 16. Bd2 {[%clk 0:02:23.6]} 16...
Nbd5 {[%clk 0:02:20.5]} 17. Be1 {[%clk 0:02:08.1]} 17... b6 {[%clk 0:02:14]} 18.
Qd3 {[%clk 0:01:25.2]} 18... Qc8 {[%clk 0:02:05.9]} 19. b3 {[%clk 0:01:15.2]}
19... Qb7 {[%clk 0:02:03.7]} 20. Rac1 {[%clk 0:01:13.5]} 20... Rfd8 {[%clk
0:02:00.2]} 21. Nb1 {[%clk 0:01:02.2]} 21... Ne7 {[%clk 0:01:55.8]} 22. Nbd2
{[%clk 0:00:56.7]} 22... Rac8 {[%clk 0:01:52.8]} 23. Nh4 {[%clk 0:00:53]} 23...
Bxg2 {[%clk 0:01:52.1]} 24. Nxg2 {[%clk 0:00:53.9]} 24... c5 {[%clk 0:01:41]}
25. Nc4 {[%clk 0:00:53.6]} 25... Bb8 {[%clk 0:01:39]} 26. Qc3 {[%clk 0:00:46.1]}
26... Ned5 {[%clk 0:01:14.2]} 27. Qf3 {[%clk 0:00:41.6]} 27... cxd4 {[%clk
0:01:09.9]} 28. Rxd4 {[%clk 0:00:42.5]} 28... b5 {[%clk 0:01:09.5]} 29. axb5
{[%clk 0:00:43.4]} 29... axb5 {[%clk 0:01:08.7]} 30. Rdd1 {[%clk 0:00:43.4]}
30... Ba7 {[%clk 0:00:50.8]} 31. Ne5 {[%clk 0:00:31.6]} 31... Rxc1 {[%clk
0:00:47.3]} 32. Rxc1 {[%clk 0:00:32.5]} 32... Rc8 {[%clk 0:00:47.9]} 33. Rd1
{[%clk 0:00:31.2]} 33... Rc2 {[%clk 0:00:46.3]} 34. Nf4 {[%clk 0:00:28.9]} 34...
Qc7 {[%clk 0:00:44.1]} 35. Nxd5 {[%clk 0:00:25.2]} 35... Nxd5 {[%clk 0:00:42.8]}
36. Nd3 {[%clk 0:00:25.8]} 36... g6 {[%clk 0:00:37.5]} 37. h4 {[%clk 0:00:25.8]}
37... h5 {[%clk 0:00:37.6]} 38. Rd2 {[%clk 0:00:21.9]} 38... Rxd2 {[%clk
0:00:35.7]} 39. Bxd2 {[%clk 0:00:22.8]} 39... Qc2 {[%clk 0:00:35.9]} 40. Bg5
{[%clk 0:00:18.3]} 40... Qxb3 {[%clk 0:00:33.6]} 41. e4 {[%clk 0:00:18.9]} 41...
Qb1+ {[%clk 0:00:28.4]} 42. Kg2 {[%clk 0:00:17.9]} 42... Nc3 {[%clk 0:00:22.6]}
43. Bf6 {[%clk 0:00:13.8]} 43... Qc2 {[%clk 0:00:19.4]} 44. Kh2 {[%clk
0:00:10.9]} 44... Nd1 {[%clk 0:00:17.2]} 45. Kg1 {[%clk 0:00:10.9]} 45... Be3
{[%clk 0:00:14.7]} 46. Be5 {[%clk 0:00:08.7]} 46... Qxd3 {[%clk 0:00:12.5]} 47.
Qf6 {[%clk 0:00:08.9]} 47... Bxf2+ {[%clk 0:00:11]} 48. Kg2 {[%clk 0:00:08.3]}
48... Ne3+ {[%clk 0:00:10.3]} 0-1

[Event "Late-Titled-Tuesday-Blitz-March-12-2024"]
[Site "Chess.com"]
[Date "2024.03.12"]
[Round "4"]
[White "KetiTsatsalashvili"]
[Black "JaloliddinIlkhomi"]
[Result "1-0"]
[WhiteElo "2455"]
[BlackElo "2632"]
[TimeControl "180+1"]
[EndTime "14:38:17 PDT"]
[Termination "KetiTsatsalashvili won by resignation"]

1. d4 {[%clk 0:03:00.9]} 1... Nf6 {[%clk 0:02:52.2]} 2. Nf3 {[%clk 0:03:00.5]}
2... e6 {[%clk 0:02:52.8]} 3. c4 {[%clk 0:02:59.7]} 3... b6 {[%clk 0:02:53.2]}
4. Nc3 {[%clk 0:02:58.3]} 4... Bb7 {[%clk 0:02:53.1]} 5. Bg5 {[%clk 0:02:58.7]}
5... Be7 {[%clk 0:02:53.7]} 6. g3 {[%clk 0:02:56.4]} 6... Ne4 {[%clk 0:02:53.7]}
7. Bxe7 {[%clk 0:02:55.7]} 7... Qxe7 {[%clk 0:02:54.6]} 8. Nxe4 {[%clk
0:02:53.5]} 8... Bxe4 {[%clk 0:02:55.5]} 9. Bg2 {[%clk 0:02:54.1]} 9... O-O
{[%clk 0:02:53.6]} 10. O-O {[%clk 0:02:54.4]} 10... f5 {[%clk 0:02:53.7]} 11.
Nd2 {[%clk 0:02:53.4]} 11... Bxg2 {[%clk 0:02:53.5]} 12. Kxg2 {[%clk 0:02:54.3]}
12... d6 {[%clk 0:02:54.4]} 13. Qc2 {[%clk 0:02:46.5]} 13... Nd7 {[%clk
0:02:54]} 14. e4 {[%clk 0:02:46.8]} 14... f4 {[%clk 0:02:54.3]} 15. f3 {[%clk
0:02:30.2]} 15... e5 {[%clk 0:02:53.7]} 16. Nb3 {[%clk 0:02:19]} 16... Qg5
{[%clk 0:02:52.2]} 17. g4 {[%clk 0:01:59.7]} 17... h5 {[%clk 0:02:40]} 18. h3
{[%clk 0:01:59.7]} 18... Rf6 {[%clk 0:02:34.3]} 19. c5 {[%clk 0:01:53.1]} 19...
bxc5 {[%clk 0:02:13.7]} 20. dxc5 {[%clk 0:01:52.2]} 20... Nxc5 {[%clk
0:01:55.8]} 21. Nxc5 {[%clk 0:01:51.3]} 21... dxc5 {[%clk 0:01:56.7]} 22. Qxc5
{[%clk 0:01:45.3]} 22... Rb8 {[%clk 0:01:57]} 23. Qf2 {[%clk 0:01:36.1]} 23...
Rfb6 {[%clk 0:01:38.9]} 24. b3 {[%clk 0:01:34.8]} 24... Rd6 {[%clk 0:01:39.1]}
25. Rfd1 {[%clk 0:01:28.3]} 25... Rbd8 {[%clk 0:01:39.4]} 26. Rxd6 {[%clk
0:01:26.3]} 26... Rxd6 {[%clk 0:01:40.3]} 27. Rc1 {[%clk 0:01:22.3]} 27... Qd8
{[%clk 0:01:37.9]} 28. Rc2 {[%clk 0:01:20.9]} 28... Rd3 {[%clk 0:01:32.2]} 29.
Qe2 {[%clk 0:01:02.6]} 29... hxg4 {[%clk 0:01:26.8]} 30. hxg4 {[%clk 0:01:02.5]}
30... Rd1 {[%clk 0:01:20.1]} 31. Qc4+ {[%clk 0:01:02]} 31... Kh7 {[%clk
0:01:18.6]} 32. Qf7 {[%clk 0:00:46.5]} 32... Rd2+ {[%clk 0:01:04.3]} 33. Rxd2
{[%clk 0:00:45.9]} 33... Qxd2+ {[%clk 0:01:05.2]} 34. Kh3 {[%clk 0:00:43]} 34...
Qd6 {[%clk 0:00:47.3]} 35. g5 {[%clk 0:00:37.9]} 35... Qg6 {[%clk 0:00:07.5]}
36. Qf5 {[%clk 0:00:20.6]} 36... a5 {[%clk 0:00:04.9]} 37. Kg4 {[%clk
0:00:14.5]} 37... Qxf5+ {[%clk 0:00:02.6]} 38. Kxf5 {[%clk 0:00:14]} 38... c5
{[%clk 0:00:01.6]} 39. Kxe5 {[%clk 0:00:14.1]} 39... Kg6 {[%clk 0:00:02.1]} 40.
Kxf4 {[%clk 0:00:14.5]} 40... a4 {[%clk 0:00:03]} 41. Kg4 {[%clk 0:00:13.9]}
41... Kf7 {[%clk 0:00:02.2]} 42. f4 {[%clk 0:00:13.7]} 42... Ke6 {[%clk
0:00:03.1]} 43. g6 {[%clk 0:00:12.6]} 43... Kf6 {[%clk 0:00:03.8]} 44. f5 {[%clk
0:00:12.8]} 44... Ke5 {[%clk 0:00:04.7]} 45. Kf3 {[%clk 0:00:13.2]} 45... a3
{[%clk 0:00:05.2]} 46. Ke3 {[%clk 0:00:12.8]} 46... Kf6 {[%clk 0:00:05.9]} 47.
Kf4 {[%clk 0:00:13.3]} 47... c4 {[%clk 0:00:06.8]} 48. bxc4 {[%clk 0:00:13]}
48... Ke7 {[%clk 0:00:07.7]} 49. e5 {[%clk 0:00:13.3]} 1-0

[Event "Late-Titled-Tuesday-Blitz-March-12-2024"]
[Site "Chess.com"]
[Date "2024.03.12"]
[Round "4"]
[White "Eloist"]
[Black "AlexTruskavetsky"]
[Result "0-1"]
[WhiteElo "2454"]
[BlackElo "2689"]
[TimeControl "180+1"]
[EndTime "14:38:19 PDT"]
[Termination "AlexTruskavetsky won on time"]

1. e4 {[%clk 0:03:00.9]} 1... c5 {[%clk 0:02:52.1]} 2. Nf3 {[%clk 0:03:00.4]}
2... Nc6 {[%clk 0:02:51.9]} 3. Bb5 {[%clk 0:03:00.2]} 3... d6 {[%clk 0:02:48.4]}
4. O-O {[%clk 0:02:59.4]} 4... Bd7 {[%clk 0:02:48.6]} 5. Re1 {[%clk 0:02:57.4]}
5... e5 {[%clk 0:02:48.9]} 6. c3 {[%clk 0:02:57.3]} 6... f6 {[%clk 0:02:46.6]}
7. d4 {[%clk 0:02:57.1]} 7... cxd4 {[%clk 0:02:45.1]} 8. cxd4 {[%clk 0:02:57]}
8... g6 {[%clk 0:02:45.6]} 9. Nc3 {[%clk 0:02:56]} 9... Nh6 {[%clk 0:02:39.9]}
10. h3 {[%clk 0:02:34.8]} 10... Nf7 {[%clk 0:01:58.8]} 11. Be3 {[%clk 0:02:33]}
11... Bg7 {[%clk 0:01:59]} 12. Qd2 {[%clk 0:02:25.2]} 12... O-O {[%clk
0:01:59.1]} 13. Rad1 {[%clk 0:02:25.2]} 13... a6 {[%clk 0:01:59.2]} 14. Bc4
{[%clk 0:02:18.9]} 14... Kh8 {[%clk 0:01:58.9]} 15. dxe5 {[%clk 0:02:16.3]}
15... Nfxe5 {[%clk 0:01:53.3]} 16. Nxe5 {[%clk 0:02:13]} 16... Nxe5 {[%clk
0:01:54.2]} 17. Be2 {[%clk 0:02:04.7]} 17... Nf7 {[%clk 0:01:51.1]} 18. Bc4
{[%clk 0:01:59.4]} 18... Ne5 {[%clk 0:01:50.2]} 19. Be2 {[%clk 0:01:59]} 19...
Nf7 {[%clk 0:01:49.4]} 20. f4 {[%clk 0:01:58.6]} 20... f5 {[%clk 0:01:47.5]} 21.
Bd4 {[%clk 0:01:54.4]} 21... Be6 {[%clk 0:01:36.6]} 22. Bf3 {[%clk 0:01:50]}
22... Rb8 {[%clk 0:01:19]} 23. exf5 {[%clk 0:01:44.7]} 23... Bxf5 {[%clk
0:01:19.5]} 24. g4 {[%clk 0:01:38.8]} 24... Bd7 {[%clk 0:01:17]} 25. Bxg7+
{[%clk 0:01:35.8]} 25... Kxg7 {[%clk 0:01:17.9]} 26. Qd4+ {[%clk 0:01:35.4]}
26... Qf6 {[%clk 0:01:15.7]} 27. Bd5 {[%clk 0:01:17.1]} 27... Qxd4+ {[%clk
0:00:45.7]} 28. Rxd4 {[%clk 0:01:16.4]} 28... Bc6 {[%clk 0:00:24.9]} 29. Bb3
{[%clk 0:01:01.6]} 29... Rbe8 {[%clk 0:00:21.5]} 30. Rxe8 {[%clk 0:00:54.5]}
30... Rxe8 {[%clk 0:00:22]} 31. Bxf7 {[%clk 0:00:48.8]} 31... Kxf7 {[%clk
0:00:22.9]} 32. Rxd6 {[%clk 0:00:48.6]} 32... Re3 {[%clk 0:00:23.2]} 33. Kh2
{[%clk 0:00:36.4]} 33... Rf3 {[%clk 0:00:23.5]} 34. Rd4 {[%clk 0:00:31.9]} 34...
Rf2+ {[%clk 0:00:22.7]} 35. Kg3 {[%clk 0:00:30.7]} 35... Rxb2 {[%clk 0:00:23.6]}
36. f5 {[%clk 0:00:28.2]} 36... Rc2 {[%clk 0:00:23.1]} 37. Ne4 {[%clk
0:00:24.2]} 37... Bxe4 {[%clk 0:00:19.7]} 38. Rxe4 {[%clk 0:00:22.9]} 38... Rxa2
{[%clk 0:00:20.1]} 39. Rc4 {[%clk 0:00:19.2]} 39... gxf5 {[%clk 0:00:17.7]} 40.
gxf5 {[%clk 0:00:15.6]} 40... Rb2 {[%clk 0:00:17.7]} 41. Rc7+ {[%clk 0:00:14.5]}
41... Kf6 {[%clk 0:00:18]} 42. Rxh7 {[%clk 0:00:10]} 42... Kxf5 {[%clk
0:00:18.1]} 43. h4 {[%clk 0:00:09.8]} 43... Rb3+ {[%clk 0:00:18.3]} 44. Kg2
{[%clk 0:00:09.5]} 44... Kg4 {[%clk 0:00:18.7]} 45. h5 {[%clk 0:00:09.9]} 45...
Kg5 {[%clk 0:00:17.2]} 46. h6 {[%clk 0:00:08]} 46... Kg6 {[%clk 0:00:17.1]} 47.
Rh8 {[%clk 0:00:07.9]} 47... Rb5 {[%clk 0:00:16.9]} 48. Kf3 {[%clk 0:00:07.5]}
48... a5 {[%clk 0:00:16.5]} 49. Ke4 {[%clk 0:00:06.3]} 49... Rb4+ {[%clk
0:00:16.6]} 50. Kd5 {[%clk 0:00:06.3]} 50... b6 {[%clk 0:00:16.5]} 51. Kc6
{[%clk 0:00:03.6]} 51... a4 {[%clk 0:00:15.7]} 0-1

[Event "Late-Titled-Tuesday-Blitz-March-12-2024"]
[Site "Chess.com"]
[Date "2024.03.12"]
[Round "4"]
[White "IMSlavin"]
[Black "amiralfio"]
[Result "1-0"]
[WhiteElo "2284"]
[BlackElo "2657"]
[TimeControl "180+1"]
[EndTime "14:38:22 PDT"]
[Termination "IMSlavin won by checkmate"]

1. e4 {[%clk 0:02:59.3]} 1... c5 {[%clk 0:03:00.1]} 2. g3 {[%clk 0:02:57.9]}
2... e6 {[%clk 0:02:58.6]} 3. Bg2 {[%clk 0:02:57.5]} 3... Nc6 {[%clk 0:02:59.3]}
4. Ne2 {[%clk 0:02:57.4]} 4... g6 {[%clk 0:02:59.9]} 5. O-O {[%clk 0:02:57.2]}
5... Bg7 {[%clk 0:03:00.6]} 6. Nbc3 {[%clk 0:02:57.7]} 6... Nge7 {[%clk
0:03:00.4]} 7. a3 {[%clk 0:02:58]} 7... d5 {[%clk 0:03:00.8]} 8. exd5 {[%clk
0:02:57.9]} 8... exd5 {[%clk 0:03:01.7]} 9. d3 {[%clk 0:02:46.4]} 9... O-O
{[%clk 0:03:00.4]} 10. Rb1 {[%clk 0:02:46.5]} 10... b6 {[%clk 0:02:54.1]} 11. b4
{[%clk 0:02:44.8]} 11... Be6 {[%clk 0:02:37.8]} 12. Bf4 {[%clk 0:02:36.8]} 12...
Qd7 {[%clk 0:02:33.4]} 13. bxc5 {[%clk 0:02:14.9]} 13... bxc5 {[%clk 0:02:34.3]}
14. Na4 {[%clk 0:02:15.3]} 14... c4 {[%clk 0:02:22.8]} 15. Nc5 {[%clk 0:02:15]}
15... Qc8 {[%clk 0:02:21]} 16. Nxe6 {[%clk 0:02:11]} 16... Qxe6 {[%clk 0:02:17]}
17. d4 {[%clk 0:01:55]} 17... Nf5 {[%clk 0:02:07.4]} 18. c3 {[%clk 0:01:54.2]}
18... Rfe8 {[%clk 0:01:59.6]} 19. Re1 {[%clk 0:01:52.6]} 19... Nd6 {[%clk
0:01:54.5]} 20. Kf1 {[%clk 0:01:41.1]} 20... Ne4 {[%clk 0:01:48.3]} 21. Qc2
{[%clk 0:01:40.2]} 21... Qe7 {[%clk 0:01:12.3]} 22. Qa4 {[%clk 0:01:31]} 22...
g5 {[%clk 0:00:53.4]} 23. Be3 {[%clk 0:01:24.4]} 23... Qe6 {[%clk 0:00:51.2]}
24. Rb7 {[%clk 0:01:09.6]} 24... Rab8 {[%clk 0:00:43.8]} 25. Reb1 {[%clk
0:01:07.6]} 25... Rxb7 {[%clk 0:00:34.7]} 26. Rxb7 {[%clk 0:01:07]} 26... Nxf2
{[%clk 0:00:35.2]} 27. Bxf2 {[%clk 0:01:00.8]} 27... Qxe2+ {[%clk 0:00:34.9]}
28. Kg1 {[%clk 0:01:01]} 28... Qe6 {[%clk 0:00:16.1]} 29. Qb5 {[%clk 0:01:00.1]}
29... Rd8 {[%clk 0:00:15.8]} 30. Rc7 {[%clk 0:00:44.5]} 30... Ne7 {[%clk
0:00:15.3]} 31. Qb7 {[%clk 0:00:43.5]} 31... Nf5 {[%clk 0:00:14.6]} 32. Bh3
{[%clk 0:00:38.7]} 32... h5 {[%clk 0:00:07.9]} 33. Rc6 {[%clk 0:00:32.2]} 33...
Qe4 {[%clk 0:00:07.2]} 34. Bxf5 {[%clk 0:00:30.3]} 34... Qxf5 {[%clk 0:00:07.8]}
35. Qe7 {[%clk 0:00:30.3]} 35... Rb8 {[%clk 0:00:07.1]} 36. Qe1 {[%clk
0:00:14.9]} 36... h4 {[%clk 0:00:07.2]} 37. gxh4 {[%clk 0:00:14.2]} 37... gxh4
{[%clk 0:00:06.2]} 38. Bxh4 {[%clk 0:00:14.1]} 38... Rb2 {[%clk 0:00:06.2]} 39.
Bg3 {[%clk 0:00:13.1]} 39... Qf3 {[%clk 0:00:05.5]} 40. Bf2 {[%clk 0:00:13.3]}
40... Re2 {[%clk 0:00:04]} 41. Rc8+ {[%clk 0:00:13.2]} 41... Kh7 {[%clk
0:00:02.8]} 42. Qf1 {[%clk 0:00:14.1]} 42... Re4 {[%clk 0:00:01.9]} 43. Qg2
{[%clk 0:00:10.2]} 43... Qd3 {[%clk 0:00:02.3]} 44. h3 {[%clk 0:00:07.3]} 44...
Qd1+ {[%clk 0:00:02.7]} 45. Kh2 {[%clk 0:00:07.6]} 45... Qh5 {[%clk 0:00:03.4]}
46. Bg3 {[%clk 0:00:07.9]} 46... Re2 {[%clk 0:00:03.6]} 47. Bf2 {[%clk
0:00:06.8]} 47... Bh6 {[%clk 0:00:04.3]} 48. Qg8# {[%clk 0:00:04.3]} 1-0